[Event "EICC 2025"]
[Site "Eforie-Nord"]
[Date "2025.03.15"]
[Round "1.16"]
[White "Starosta, Martyna"]
[Black "Samunenkov, Ihor"]
[Result "0-1"]
[Annotator "ChessBase"]
[ECO "B48"]
[WhiteElo "2226"]
[BlackElo "2556"]
[PlyCount "106"]
[EventDate "2025.03.14"]
[EventType "swiss"]
[EventCountry "ROU"]
[SourceTitle "playchess.com"]
[Source "ChessBase"]
[SourceQuality "1"]
[TimeControl "40/5400+30:1800+30"]

1. e4 {[%emt 0:00:03]} c5 {[%emt 0:00:12]} 2. Nf3 {[%emt 0:00:05]} Nc6 {[%emt 0:00:12]} 3. d4 {[%emt 0:00:06]} cxd4 {[%emt 0:00:10]} 4. Nxd4 {[%emt 0:00:03]} e6 {[%emt 0:00:12]} 5. Nc3 {[%emt 0:00:57]} Qc7 {[%emt 0:00:11]} 6. Be3 {[%emt 0:04:01]} a6 {[%emt 0:00:12]} 7. Qf3 {[%emt 0:01:20]} h5 {[%emt 0:01:21]} 8. O-O-O {[%emt 0:04:10]} b5 {[%emt 0:00:38]} 9. Qg3 {[%emt 0:02:14]} Qxg3 {[%emt 0:01:00]} 10. hxg3 {[%emt 0:00:08]} Bc5 {[%emt 0:00:16]} 11. Kb1 {[%emt 0:06:39]} Bxd4 {[%emt 0:03:55]} 12. Bxd4 {[%emt 0:00:09]} Nxd4 {[%emt 0:00:07]} 13. Rxd4 {[%emt 0:00:05]} Bb7 {[%emt 0:01:26]} 14. Be2 {[%emt 0:06:22]} Ne7 {[%emt 0:05:24]} 15. Rxh5 {[%emt 0:03:21]} Rxh5 {[%emt 0:03:11]} 16. Bxh5 {[%emt 0:04:00]} Nc6 {[%emt 0:00:20]} 17. Rd1 {[%emt 0:05:44]} Ke7 {[%emt 0:00:42]} 18. f4 {[%emt 0:01:42]} Rh8 {[%emt 0:02:41]} 19. Bf3 {[%emt 0:00:46]} d6 {[%emt 0:01:11]} 20. Kc1 {[%emt 0:03:51]} Rh2 {[%emt 0:14:37]} 21. Ne2 {[%emt 0:04:05]} Na5 {[%emt 0:02:08]} 22. Nd4 {[%emt 0:06:07]} g6 {[%emt 0:08:33]} 23. e5 {[%emt 0:10:28]} dxe5 {[%emt 0:06:02]} 24. Bxb7 {[%emt 0:04:09]} Nxb7 {[%emt 0:01:22]} 25. Nc6+ {[%emt 0:00:09]} Ke8 {[%emt 0:11:38]} 26. Nxe5 {[%emt 0:00:25]} Rxg2 {[%emt 0:06:03]} 27. Rd7 {[%emt 0:04:45]} Nc5 {[%emt 0:01:23]} 28. Rxf7 {[%emt 0:02:28]} Ne4 {[%emt 0:00:15]} 29. b3 {[%emt 0:01:30]} Nxg3 {[%emt 0:12:11]} 30. Rf6 {[%emt 0:02:06]} Ne2+ {[%emt 0:01:43]} 31. Kb1 {[%emt 0:02:38]} Ke7 {[%emt 0:04:07]} 32. Rxg6 {[%emt 0:10:52]} Rxg6 {[%emt 0:00:23]} 33. Nxg6+ {[%emt 0:00:04]} Kf6 {[%emt 0:00:08]} 34. Ne5 {[%emt 0:00:42]} Nxf4 {[%emt 0:02:35]} 35. Nd7+ {[%emt 0:00:04]} Kf5 {[%emt 0:00:40]} 36. c4 {[%emt 0:02:45]} bxc4 {[%emt 0:01:57]} 37. bxc4 {[%emt 0:00:07]} e5 {[%emt 0:00:22]} 38. Kc2 {[%emt 0:02:07]} Ne6 {[%emt 0:00:32]} 39. Kd3 {[%emt 0:05:16]} Kf4 {[%emt 0:00:16]} 40. Nf6 {[%emt 0:00:30]} Kf3 {[%emt 0:05:53]} 41. c5 {[%emt 0:09:11]} Nxc5+ {[%emt 0:12:58]} 42. Kc4 {[%emt 0:01:01]} e4 {[%emt 0:00:23]} 43. Nxe4 {[%emt 0:19:24]} Nxe4 {[%emt 0:00:07]} 44. a4 {[%emt 0:00:33]} Ke3 {[%emt 0:04:31]} 45. a5 {[%emt 0:00:20]} Kd2 {[%emt 0:01:37]} 46. Kd4 {[%emt 0:02:26]} Nc3 {[%emt 0:00:24]} 47. Kc4 {[%emt 0:01:20]} Kc2 {[%emt 0:00:24]} 48. Kb4 {[%emt 0:02:25]} Kd3 {[%emt 0:00:37]} 49. Kc5 {[%emt 0:00:13]} Na2 {[%emt 0:00:41]} 50. Kb6 {[%emt 0:00:34]} Nb4 {[%emt 0:00:09]} 51. Kc5 {[%emt 0:00:04]} Kc3 {[%emt 0:00:05]} 52. Kd6 {[%emt 0:01:03]} Kc4 {[%emt 0:00:07]} 53. Ke5 {[%emt 0:00:06]} Nc6+ {[%emt 0:00:13]} 0-1

[Event "EICC 2025"]
[Site "Eforie-Nord"]
[Date "2025.03.15"]
[Round "1.17"]
[White "Engel, Luis"]
[Black "Orian, Noga"]
[Result "1-0"]
[Annotator "ChessBase"]
[ECO "B30"]
[WhiteElo "2555"]
[BlackElo "2225"]
[PlyCount "87"]
[EventDate "2025.03.14"]
[EventType "swiss"]
[EventCountry "ROU"]
[SourceTitle "playchess.com"]
[Source "ChessBase"]
[SourceQuality "1"]
[TimeControl "40/5400+30:1800+30"]

1. e4 {[%emt 0:00:03]} c5 {[%emt 0:00:05]} 2. Nf3 {[%emt 0:00:04]} Nc6 {[%emt 0:00:17]} 3. Bb5 {[%emt 0:00:06]} Nf6 {[%emt 0:00:23]} 4. Bxc6 {[%emt 0:00:06]} dxc6 {[%emt 0:00:04]} 5. d3 {[%emt 0:00:05]} Qc7 {[%emt 0:00:11]} 6. e5 {[%emt 0:01:20]} Nd5 {[%emt 0:00:09]} 7. c4 {[%emt 0:00:07]} Nb4 {[%emt 0:00:09]} 8. a3 {[%emt 0:00:06]} Na6 {[%emt 0:00:04]} 9. Qe2 {[%emt 0:02:57]} Bg4 {[%emt 0:00:24]} 10. Nbd2 {[%emt 0:05:04]} Rd8 {[%emt 0:05:06]} 11. h3 {[%emt 0:03:04]} Bf5 {[%emt 0:01:52]} 12. Ne4 {[%emt 0:00:12]} Qd7 {[%emt 0:00:22]} 13. Nh4 {[%emt 0:05:30]} Be6 {[%emt 0:16:49]} 14. Be3 {[%emt 0:13:16]} Qxd3 {[%emt 0:05:02]} 15. Qxd3 {[%emt 0:00:09]} Rxd3 {[%emt 0:00:02]} 16. Rc1 {[%emt 0:00:10]} h6 {[%emt 0:15:59]} 17. Ke2 {[%emt 0:04:05]} Rd8 {[%emt 0:01:07]} 18. g4 {[%emt 0:12:51]} h5 {[%emt 0:15:01]} 19. f3 {[%emt 0:13:51]} b6 {[%emt 0:04:08]} 20. Nf2 {[%emt 0:03:18]} hxg4 {[%emt 0:07:31]} 21. hxg4 {[%emt 0:00:07]} g6 {[%emt 0:00:08]} 22. b3 {[%emt 0:03:36]} Bg7 {[%emt 0:00:44]} 23. f4 {[%emt 0:01:45]} g5 {[%emt 0:02:29]} 24. Nf5 {[%emt 0:01:56]} Bxf5 {[%emt 0:00:58]} 25. gxf5 {[%emt 0:00:07]} gxf4 {[%emt 0:02:18]} 26. Bxf4 {[%emt 0:00:40]} Rxh1 27. Rxh1 {[%emt 0:00:05]} Rd4 {[%emt 0:07:25]} 28. Be3 {[%emt 0:01:58]} Bxe5 {[%emt 0:01:12]} 29. Bxd4 {[%emt 0:00:08]} cxd4 {[%emt 0:02:20]} 30. Nd3 {[%emt 0:01:59]} Bf6 {[%emt 0:01:13]} 31. Kf3 {[%emt 0:00:30]} Nc7 {[%emt 0:03:49]} 32. Ke4 {[%emt 0:00:42]} Kd7 {[%emt 0:01:35]} 33. b4 {[%emt 0:02:41]} Ne8 {[%emt 0:06:58]} 34. c5 {[%emt 0:00:54]} Nc7 {[%emt 0:00:01]} 35. Ne5+ {[%emt 0:04:28]} Bxe5 {[%emt 0:00:07]} 36. Kxe5 {[%emt 0:00:04]} f6+ {[%emt 0:01:15]} 37. Ke4 {[%emt 0:00:50]} Nb5 {[%emt 0:00:37]} 38. Ra1 {[%emt 0:01:04]} a5 {[%emt 0:00:43]} 39. a4 {[%emt 0:02:05]} Nc3+ {[%emt 0:00:30]} 40. Kxd4 {[%emt 0:00:07]} axb4 {[%emt 0:00:03]} 41. cxb6 {[%emt 0:30:09]} Kc8 {[%emt 0:30:49]} 42. a5 {[%emt 0:00:53]} c5+ {[%emt 0:00:00]} 43. Kxc5 {[%emt 0:00:00]} b3 {[%emt 0:00:00]} 44. Kc6 {[%emt 0:00:00]} 1-0

[Event "EICC 2025"]
[Site "Eforie-Nord"]
[Date "2025.03.15"]
[Round "1.17"]
[White "Boder, Jan"]
[Black "Bluebaum, Matthias"]
[Result "0-1"]
[Annotator "TA"]
[ECO "D43"]
[WhiteElo "2317"]
[BlackElo "2643"]
[PlyCount "88"]
[EventDate "2025.03.14"]
[EventType "swiss"]
[EventCountry "ROU"]
[SourceTitle "playchess.com"]
[Source "ChessBase"]
[SourceQuality "1"]
[TimeControl "40/5400+30:1800+30"]

{[%evp 13,88,22,41,4,26,13,11,20,12,14,14,27,38,29,33,29,25,32,32,40,79,20,56,15,20,7,11,10,17,-16,-23,-38,-22,-87,-100,-90,-90,-93,-94,-94,-92,-103,-87,-149,-147,-196,-195,-261,-240,-354,-356,-483,-485,-488,-491,-535,-527,-524,-523,-29963,-753,-3019,-3019,-1702,-1418,-12847,-5644,-4718,-4714,-29982,-29983,-29988,-29989,-29989,-29990,-29993,-29994]} 1. d4 {[%emt 0:00:11]} Nf6 {[%emt 0:00:14]} 2. c4 {[%emt 0:00:16]} e6 {[%emt 0:00:09]} 3. Nf3 {[%emt 0:00:23]} d5 {[%emt 0:00:20]} 4. Nc3 {[%emt 0:00:39]} c6 {[%emt 0:00:17]} 5. Bg5 {[%emt 0:01:06]} h6 {[%emt 0:00:24]} 6. Bxf6 {[%emt 0:00:23]} Qxf6 {[%emt 0:00:09]} 7. e3 {[%emt 0:00:12]} g6 {[%emt 0:00:55]} 8. Bd3 {[%emt 0:00:39] D43: Semi-Slav: 5 Bg5 h6.} Bg7 {[%emt 0:01:25]} 9. O-O {[%emt 0:00:13]} O-O {[%emt 0:02:26]} 10. e4 {[%emt 0:00:20] The position is equal.} dxe4 {[%emt 0:06:19] was the old line (10...Qd8).} 11. Nxe4 {[%emt 0:00:36]} Qd8 {[%emt 0:00:08][%cal Of7f5]} 12. c5 {[%emt 0:00:32]} b6 $5 {[%emt 0:04:03][%mdl 4] Leaves trodden paths.} 13. Qc2 $1 {[%emt 0:12:13]} Bxd4 {[%emt 0:14:34]} 14. Nxd4 {[%emt 0:11:54] White sacrificed a pawn} Qxd4 {[%emt 0:00:06]} 15. Rad1 {[%emt 0:00:27]} Qg7 {[%emt 0:03:14]} 16. b4 {[%emt 0:07:13][%cal Bb2b4,Bb4c5][%mdl 32]} Nd7 {[%emt 0:06:10]} 17. Qc1 {[%emt 0:00:33]} (17. Nd6 $16) 17... Kh7 $146 {[%emt 0:11:12]} (17... bxc5 18. bxc5 Nf6 19. Nd6 a5 20. Rfe1 Nd5 21. Bc4 a4 22. a3 Ba6 23. Bxd5 cxd5 {1-0 Velilla Velasco,F (2559)-Jacot,L (2517) SUI-ch30 A email 2015}) 18. Rfe1 {[%emt 0:13:42]} bxc5 {[%emt 0:05:05]} 19. bxc5 {[%emt 0:07:09]} f5 {[%emt 0:02:26]} 20. Nd6 {[%emt 0:02:05]} e5 {[%emt 0:00:03]} 21. Qc3 {[%emt 0:07:34]} e4 {[%emt 0:04:43]} 22. Qxg7+ {[%emt 0:01:40]} Kxg7 {[%emt 0:00:02]} 23. Bf1 {[%emt 0:07:53]} (23. Bxe4 $11 {keeps the balance.} fxe4 24. Nxc8 Nxc5 25. Nd6) 23... Nxc5 $17 {[%emt 0:04:49] White is now going downhill.} 24. Rc1 {[%emt 0:00:41]} Nb7 {[%emt 0:01:55]} 25. Rxc6 {[%emt 0:01:18] and Rc7+ would now be decisive} Nxd6 {[%emt 0:01:04]} 26. Rxd6 {[%emt 0:00:04]} Rf6 {[%emt 0:00:03]} 27. Red1 {[%emt 0:04:08]} Be6 {[%emt 0:00:17]} 28. a3 {[%emt 0:02:50]} (28. Ra6 $142) 28... Bb3 $1 {[%emt 0:04:04]} 29. Rxf6 {[%emt 0:01:51]} (29. Rd7+ $17 Rf7 30. R1d6) 29... Kxf6 {[%emt 0:02:51][%mdl 4096] Endgame KRB-KRB. Black is a pawn up.} (29... Bxd1 30. Ra6 $17) 30. Rd6+ {[%emt 0:00:12] [#]} (30. Rc1 $142) 30... Ke5 $1 $19 {[%emt 0:03:39]} 31. Rxg6 {[%emt 0:01:04] [#]} (31. Rc6 {was worth a try.}) 31... Rc8 $1 {[%emt 0:00:03]} 32. g4 {[%emt 0:13:22]} Rc1 {[%emt 0:01:31]} 33. Kg2 {[%emt 0:00:04]} Bd1 {[%emt 0:02:13]} 34. Bb5 {[%emt 0:02:37]} Bf3+ {[%emt 0:00:22]} 35. Kg3 {[%emt 0:01:14]} Bxg4 {[%emt 0:01:02] Hoping for ...Rc3+.} 36. Rxh6 {[%emt 0:00:35]} Rc3+ {[%emt 0:00:15]} (36... Rg1+ $142 37. Kh4 Kf4 38. Rg6 Rh1 39. Rxg4+ fxg4 40. Kh5 Rxh2+ 41. Kg6 Rxf2 42. Kg7 g3 43. Kf7 g2 44. Kf6 g1=Q (44... g1=R $2 45. Ke6 $19) 45. Bd7 Qg5+ 46. Ke6 Qe5+ 47. Kf7 Kg5+ 48. Bf5 Rxf5+ (48... Kxf5 {is a self mate.} 49. a4 Kg4+ 50. Kg8 Qg5+ 51. Kh8 Rh2#) 49. Kg8 Qe8+ 50. Kh7 Rf7#) 37. Kh4 {[%emt 0:00:33]} Kf4 {[%emt 0:00:14]} (37... Rxa3 $2 38. Kg5 $19) 38. Bf1 {[%emt 0:00:07] Dodges Rh3+} Rc2 {[%emt 0:00:21]} 39. Bh3 {[%emt 0:00:51]} Bxh3 {[%emt 0:00:12]} 40. Kxh3 {[%emt 0:00:04]} Rxf2 {[%emt 0:00:06] ( -> ...e3)} 41. Ra6 {[%emt 0:31:29]} e3 {[%emt 0:30:15] Black mates.} 42. Rxa7 {[%emt 0:00:00]} e2 {[%emt 0:00:00]} 43. Re7 {[%emt 0:00:00]} Rf3+ {[%emt 0:00:00]} 44. Kg2 {[%emt 0:00:00]} Re3 {[%emt 0:00:00] Weighted Error Value: White=0.85/Black=0.21 (precise)   Mistake:       	White=6     	Black=1      Inaccurate:     	White=5     	Black=2      OK:         	White=8     	Black=15     Best:        	White=1     	Black=3      Strong:       	White=1     	Black=3} ({Stronger than} 44... Rxa3 45. Rxe2 Kg5 46. Re8 $11) 0-1

[Event "EICC 2025"]
[Site "Eforie-Nord"]
[Date "2025.03.15"]
[Round "1.18"]
[White "Predke, Alexandr"]
[Black "Sachilaru, Alexandru"]
[Result "1-0"]
[Annotator "TA"]
[ECO "B52"]
[WhiteElo "2640"]
[BlackElo "2316"]
[PlyCount "66"]
[EventDate "2025.03.14"]
[EventType "swiss"]
[EventCountry "ROU"]
[SourceTitle "playchess.com"]
[Source "ChessBase"]
[SourceQuality "1"]
[TimeControl "40/5400+30:1800+30"]

{[%evp 17,66,32,38,34,42,30,30,35,63,71,70,41,10,18,28,32,39,0,0,0,39,48,52,45,35,41,19,31,42,33,33,32,45,22,18,0,12,0,13,2,16,-12,4,-22,9,-25,0,-7,3,11,49]} 1. e4 {[%emt 1:31:00]} c5 {[%emt 1:31:00]} 2. Nf3 {[%emt 0:00:30]} d6 {[%emt 0:00:30]} 3. Bb5+ {[%emt 0:00:30]} Nc6 {[%emt 0:00:30][%cal Bb8c6,Bc6e5,Be5f3][%mdl 32]} 4. O-O {[%emt 0:00:30]} Bd7 {[%emt 0:00:30]} 5. c3 {[%emt 0:00:30][%cal Bc2c3,Bc3d4,Bd4d5][%mdl 32]} Nf6 {[%emt 0:00:30]} 6. d4 {[%emt 0:00:30]} cxd4 {[%emt 0:00:30]} 7. cxd4 {[%emt 0:00:30]} Nxe4 {[%emt 0:00:30]} 8. d5 {[%emt 0:00:00]} Ne5 {[%emt 0:00:00]} 9. Bxd7+ {[%emt 0:00:00]} Qxd7 {[%emt 0:00:00]} 10. Re1 {[%emt 0:00:00] B52: Sicilian: Moscow Variation with 3...Bd7.} Nf6 {[%emt 0:00:00]} 11. Nc3 {[%emt 0:00:00]} Nxf3+ {[%emt 0:00:00]} 12. Qxf3 {[%emt 0:00:00] White has an edge.} e5 {[%emt 0:00:00]} 13. dxe6 {[%emt 0:00:00] White sacrificed a pawn} fxe6 {[%emt 0:00:00]} 14. Nd5 $5 {[%emt 0:00:00][%mdl 4] A promising side line. White has more active pieces. The black rooks are passive.} Nxd5 $146 {[%emt 0:00:00]} ({Predecessor:} 14... Kf7 15. Nxf6 gxf6 16. Bg5 Bg7 17. Qh5+ Ke7 18. Bh4 Rac8 19. Rad1 Rc6 20. Rd3 Kd8 {0-1 Touboulic,J (2244)-Olivier,J (2392) FRA-ch Accession 2006 (1)}) 15. Qxd5 {[%emt 0:00:00]} Kf7 {[%emt 0:00:00][%cal Be8f7,Bf7g8,Bg8f8][%mdl 32]} 16. Qf3+ {[%emt 0:00:00]} Kg8 $1 {[%emt 0:00:00]} 17. Qg4 {[%emt 0:00:00]} Re8 {[%emt 0:00:00]} 18. Bh6 {[%emt 0:00:00]} g6 {[%emt 0:00:00]} 19. Bxf8 {[%emt 0:00:00]} Kxf8 {[%emt 0:00:00]} 20. Rad1 {[%emt 0:00:00][%cal Ba1d1,Bd1d3,Bd3b3,Bb3b5][%mdl 32] Threatens to win with Qf4+.} Qe7 {[%emt 0:00:00]} 21. Qd4 {[%emt 0:00:00]} Kf7 {[%emt 0:00:00]} 22. Qxa7 {[%emt 0:00:00]} Rd8 {[%emt 0:00:00][%cal Be8d8,Bd8d7,Bd7c7,Bc7c2][%mdl 32]} 23. Rd3 {[%emt 0:00:00]} (23. Qd4 {is interesting.} Rhf8 24. Rd3 e5 25. Qd5+) 23... Rhe8 {[%emt 0:00:00]} 24. Qd4 {[%emt 0:00:00]} Kg8 {[%emt 0:00:00]} 25. Rb3 {[%emt 0:00:00]} Rd7 {[%emt 0:00:00]} 26. Rb5 {[%emt 0:00:00]} Qf7 {[%emt 0:00:00]} 27. Qd2 {[%emt 0:00:00]} d5 {[%emt 0:00:00]} 28. Re5 {[%emt 0:00:00]} Rc8 {[%emt 0:00:00]} 29. Rb3 {[%emt 0:04:01]} Rdc7 {[%emt 0:00:18]} 30. g3 {[%emt 0:01:19] Against Qf4} Rc2 {[%emt 0:02:21]} 31. Qf4 {[%emt 0:01:13]} Qd7 {[%emt 0:05:33]} 32. Qg4 {[%emt 0:02:06]} R8c6 {[%emt 0:03:34]} 33. h4 {[%emt 0:01:36]} R2c4 {[%emt 0:00:00] Weighted Error Value: White=0.10 (very precise) /Black=0.09 (flawless)   Inaccurate:     	White=5     	Black=4      OK:         	White=8     	Black=7      Best:        	White=1     	---        Strong:       	---       	Black=1} 1-0

[Event "EICC 2025"]
[Site "Eforie-Nord"]
[Date "2025.03.15"]
[Round "1.18"]
[White "Deveci, Huseyin Said"]
[Black "Moroni, Luca Jr"]
[Result "0-1"]
[Annotator "ChessBase"]
[ECO "B22"]
[WhiteElo "2225"]
[BlackElo "2555"]
[PlyCount "90"]
[EventDate "2025.03.14"]
[EventType "swiss"]
[EventCountry "ROU"]
[SourceTitle "playchess.com"]
[Source "ChessBase"]
[SourceQuality "1"]
[TimeControl "40/5400+30:1800+30"]

1. e4 {[%emt 0:00:03]} c5 {[%emt 0:00:04]} 2. c3 {[%emt 0:03:50]} d5 {[%emt 0:01:38]} 3. exd5 {[%emt 0:00:07]} Qxd5 {[%emt 0:00:06]} 4. d4 {[%emt 0:00:08]} Nf6 {[%emt 0:02:21]} 5. Nf3 {[%emt 0:02:54]} Nc6 {[%emt 0:01:28]} 6. dxc5 {[%emt 0:01:07]} Qxd1+ {[%emt 0:06:44]} 7. Kxd1 {[%emt 0:00:07]} Bg4 {[%emt 0:01:39]} 8. Be3 {[%emt 0:07:03]} Nd5 {[%emt 0:11:12]} 9. Kc1 {[%emt 0:33:36]} e6 {[%emt 0:07:07]} 10. b4 {[%emt 0:02:04]} Be7 {[%emt 0:06:21]} 11. a4 {[%emt 0:10:14]} Bxf3 {[%emt 0:11:45]} 12. gxf3 {[%emt 0:00:01]} a5 {[%emt 0:02:15]} 13. bxa5 {[%emt 0:10:34]} Nxe3 {[%emt 0:07:16]} 14. fxe3 {[%emt 0:00:06]} Bxc5 {[%emt 0:00:27]} 15. Bb5 {[%emt 0:02:17]} Bxe3+ {[%emt 0:02:21]} 16. Kc2 {[%emt 0:00:08]} Rxa5 {[%emt 0:02:02]} 17. Na3 {[%emt 0:00:32]} Bf4 {[%emt 0:01:30]} 18. Nc4 {[%emt 0:00:39]} Ra7 {[%emt 0:01:16]} 19. h4 {[%emt 0:09:06]} h5 {[%emt 0:03:50]} 20. Rhd1 {[%emt 0:00:34]} Ke7 {[%emt 0:02:17]} 21. Rd3 {[%emt 0:08:45]} Rd8 {[%emt 0:04:31]} 22. Rad1 {[%emt 0:00:13]} Rxd3 {[%emt 0:00:33]} 23. Rxd3 {[%emt 0:00:05]} Bc7 {[%emt 0:01:44]} 24. Kd2 {[%emt 0:04:25]} Ra8 {[%emt 0:01:05]} 25. Ke2 {[%emt 0:00:31]} Bg3 {[%emt 0:02:43]} 26. a5 {[%emt 0:00:39]} Nb8 {[%emt 0:04:26]} 27. Rd2 {[%emt 0:01:46]} Bxh4 {[%emt 0:02:01]} 28. a6 {[%emt 0:01:29]} Nxa6 {[%emt 0:02:05]} 29. Rd7+ {[%emt 0:00:05]} Kf8 {[%emt 0:02:10]} 30. Nd6 {[%emt 0:01:10]} Be7 {[%emt 0:01:11]} 31. Nxb7 {[%emt 0:00:10]} Ra7 {[%emt 0:01:57]} 32. c4 {[%emt 0:01:16]} g5 {[%emt 0:00:47]} 33. Kf1 {[%emt 0:00:37]} Nc5 {[%emt 0:01:42]} 34. Nxc5 {[%emt 0:00:34]} Bxc5 {[%emt 0:00:06]} 35. Rd8+ {[%emt 0:00:25]} Ke7 {[%emt 0:00:51]} 36. Rh8 {[%emt 0:00:21]} h4 {[%emt 0:00:22]} 37. Bc6 {[%emt 0:00:34]} Kd6 {[%emt 0:01:51]} 38. Rc8 {[%emt 0:00:35]} h3 {[%emt 0:01:06]} 39. f4 {[%emt 0:00:14]} gxf4 {[%emt 0:00:18]} 40. Bf3 {[%emt 0:00:12]} Bd4 {[%emt 0:01:08]} 41. c5+ {[%emt 0:30:54]} Ke5 {[%emt 0:30:32]} 42. c6 {[%emt 0:00:05]} Ra3 {[%emt 0:00:34]} 43. Ke2 {[%emt 0:00:00]} Re3+ {[%emt 0:00:00]} 44. Kf2 {[%emt 0:00:00]} Kf5 {[%emt 0:00:00]} 45. c7 {[%emt 0:00:00]} Ke5 {[%emt 0:00:00]} 0-1

[Event "EICC 2025"]
[Site "Eforie-Nord"]
[Date "2025.03.15"]
[Round "1.19"]
[White "Vogel, Roven"]
[Black "Ipek, Egehan"]
[Result "1-0"]
[Annotator "ChessBase"]
[ECO "A06"]
[WhiteElo "2552"]
[BlackElo "2221"]
[PlyCount "81"]
[EventDate "2025.03.14"]
[EventType "swiss"]
[EventCountry "ROU"]
[SourceTitle "playchess.com"]
[Source "ChessBase"]
[SourceQuality "1"]
[TimeControl "40/5400+30:1800+30"]

1. d4 {[%emt 0:00:05]} d5 {[%emt 0:00:17]} 2. c4 {[%emt 0:00:09]} c6 {[%emt 0:00:09]} 3. Nf3 {[%emt 0:00:08]} Nf6 {[%emt 0:00:07]} 4. e3 {[%emt 0:00:07]} e6 {[%emt 0:00:55]} 5. b3 {[%emt 0:00:09]} Nbd7 {[%emt 0:00:27]} 6. Bb2 {[%emt 0:00:56]} Bd6 {[%emt 0:02:25]} 7. Bd3 {[%emt 0:00:23]} Qe7 {[%emt 0:01:00]} 8. Ne5 {[%emt 0:10:19]} Nxe5 {[%emt 0:25:45]} 9. dxe5 {[%emt 0:00:03]} Bb4+ {[%emt 0:00:05]} 10. Nd2 {[%emt 0:02:05]} Nd7 {[%emt 0:02:26]} 11. O-O {[%emt 0:01:18]} O-O {[%emt 0:03:37]} 12. f4 {[%emt 0:09:50]} g6 {[%emt 0:10:58]} 13. Nf3 {[%emt 0:02:18]} dxc4 {[%emt 0:04:42]} 14. bxc4 {[%emt 0:04:07]} Ba3 {[%emt 0:11:12]} 15. Bd4 {[%emt 0:03:50]} b5 {[%emt 0:05:33]} 16. cxb5 {[%emt 0:03:10]} c5 {[%emt 0:00:18]} 17. Bc3 {[%emt 0:00:59]} Bb7 {[%emt 0:01:51]} 18. Nd2 {[%emt 0:21:17]} Nb6 {[%emt 0:06:51]} 19. Ne4 {[%emt 0:04:19]} Bxe4 {[%emt 0:00:56]} 20. Bxe4 {[%emt 0:00:02]} Rad8 {[%emt 0:00:09]} 21. Qc2 {[%emt 0:01:40]} c4 {[%emt 0:01:32]} 22. Bd4 {[%emt 0:08:56]} Bc5 {[%emt 0:01:25]} 23. Qc3 {[%emt 0:05:55]} Bxd4 {[%emt 0:01:53]} 24. exd4 {[%emt 0:00:07]} Qd7 {[%emt 0:00:10]} 25. a4 {[%emt 0:03:54]} Qxd4+ {[%emt 0:00:13]} 26. Qxd4 {[%emt 0:00:07]} Rxd4 {[%emt 0:00:05]} 27. Bc6 {[%emt 0:01:47]} Nd5 {[%emt 0:02:31]} 28. a5 {[%emt 0:03:58]} Nb4 {[%emt 0:06:09]} 29. Bb7 {[%emt 0:01:56]} c3 {[%emt 0:03:22]} 30. a6 {[%emt 0:01:57]} Nd5 {[%emt 0:01:33]} 31. g3 {[%emt 0:04:56]} c2 {[%emt 0:02:31]} 32. Rac1 {[%emt 0:01:38]} Ne3 {[%emt 0:04:22]} 33. Rfe1 {[%emt 0:00:30]} Rd1 {[%emt 0:00:20]} 34. Kf2 {[%emt 0:02:43]} Rfd8 {[%emt 0:01:01]} 35. Bf3 {[%emt 0:00:18]} Rxe1 {[%emt 0:00:35]} 36. Kxe1 {[%emt 0:00:06]} Rb8 {[%emt 0:00:30]} 37. Bb7 {[%emt 0:00:51]} Kf8 {[%emt 0:00:33]} 38. b6 {[%emt 0:00:37]} Rd8 {[%emt 0:00:19]} 39. Ke2 {[%emt 0:00:43]} Nf5 {[%emt 0:00:41]} 40. bxa7 {[%emt 0:00:24]} Nd4+ {[%emt 0:00:13]} 41. Kf2 {[%emt 0:30:31]} 1-0

[Event "EICC 2025"]
[Site "Eforie-Nord"]
[Date "2025.03.15"]
[Round "1.19"]
[White "Pogorelskikh, Sofia"]
[Black "Bjerre, Jonas Buhl"]
[Result "0-1"]
[Annotator "TA"]
[ECO "B96"]
[WhiteElo "2313"]
[BlackElo "2637"]
[PlyCount "60"]
[EventDate "2025.03.14"]
[EventType "swiss"]
[EventCountry "ROU"]
[SourceTitle "playchess.com"]
[Source "ChessBase"]
[SourceQuality "1"]
[TimeControl "40/5400+30:1800+30"]

{[%evp 14,60,31,30,28,20,37,0,0,-125,-129,-123,-114,-132,-131,-197,-192,-226,-214,-266,-299,-302,-295,-400,-387,-461,-470,-471,-453,-552,-549,-530,-557,-633,-604,-691,-676,-775,-783,-783,-775,-781,-739,-943,-984,-952,-925,-762,-759]} 1. e4 {[%emt 0:00:15]} c5 {[%emt 0:00:06]} 2. Nf3 {[%emt 0:00:10]} d6 {[%emt 0:00:05]} 3. d4 {[%emt 0:00:15]} cxd4 {[%emt 0:00:07]} 4. Nxd4 {[%emt 0:00:10]} Nf6 {[%emt 0:00:05]} 5. Nc3 {[%emt 0:00:17]} a6 {[%emt 0:00:04]} 6. Bg5 {[%emt 0:00:23]} e6 {[%emt 0:00:29][%cal Be7e6,Be6e5][%mdl 32]} 7. f4 {[%emt 0:01:34]} h6 {[%emt 0:01:17]} 8. Bh4 {[%emt 0:00:44]} Nbd7 {[%emt 0:00:52] B96: Sicilian Najdorf: 6 Bg5 e6 7 f4, lines other than 7...Qb6 and 7...Be7.} 9. Qe2 {[%emt 0:17:56]} e5 $1 {[%emt 0:02:13] 9...e5 is better than 9...Qc7.} 10. Nf5 {[%emt 0:03:32]} g6 {[%emt 0:05:01] The position is equal.} 11. O-O-O $146 {[%emt 0:13:28]} (11. Ne3 exf4 12. Ned5 g5 13. Bf2 Bg7 14. O-O-O O-O 15. h4 Ne5 16. hxg5 hxg5 17. Nxf6+ Bxf6 {1-0 Yao,H (2035)-Delgado Ramirez,N (2621) Titled Tuesday intern op 12th Jan blitz 2021 (1)}) 11... gxf5 $17 {[%emt 0:07:28]} 12. exf5 {[%emt 0:02:06] [#] and fxe5 would now be decisive} Be7 $1 {[%emt 0:09:34]} 13. g4 {[%emt 0:05:12]} exf4 {[%emt 0:10:16]} 14. Bxf6 {[%emt 0:11:47]} (14. Bg2 $17) 14... Nxf6 $19 {[%emt 0:00:14]} 15. h4 {[%emt 0:02:52]} Qb6 {[%emt 0:10:27]} 16. Rd3 {[%emt 0:11:40]} Kf8 {[%emt 0:07:44]} 17. Bg2 {[%emt 0:07:37]} Bd7 {[%emt 0:03:01]} 18. Re1 {[%emt 0:05:47]} Re8 {[%emt 0:01:31]} 19. Qd2 {[%emt 0:05:40]} Nxg4 {[%emt 0:08:05] Black is clearly winning.} 20. Nd5 {[%emt 0:02:17]} Qf2 {[%emt 0:02:22]} 21. Re2 {[%emt 0:02:12]} Qxh4 {[%emt 0:02:21]} 22. Rh3 {[%emt 0:02:43]} Qg5 {[%emt 0:01:35]} 23. Nxf4 {[%emt 0:00:21]} Qxf5 {[%emt 0:06:01] [#]} 24. Be4 {[%emt 0:01:02]} Qc5 {[%emt 0:00:59] And now ...Bg5 would win.} 25. b4 {[%emt 0:00:59]} Qe5 {[%emt 0:01:18]} 26. Kb1 {[%emt 0:00:55] Prevents Qa1+} Bf6 {[%emt 0:01:47]} 27. c3 {[%emt 0:00:12]} Bf5 {[%emt 0:02:33]} 28. Bxf5 {[%emt 0:00:41]} Qxf5+ {[%emt 0:00:06]} 29. Kb2 {[%emt 0:00:08]} Rxe2 {[%emt 0:00:50]} 30. Nxe2 {[%emt 0:00:07]} Be5 {[%emt 0:00:48] White did not feel at home in the position after the opening.   Weighted Error Value: White=0.57/Black=0.03 (flawless)   Mistake:       	White=2     	---        Inaccurate:     	White=2     	---        OK:         	White=3     	Black=9      Best:        	---       	Black=3      Strong:       	---       	Black=1} 0-1